Cogmind - Beta 14 @@@ ROGUE MODE // 2024.11.06 @ 19:08:40 Player: Shimmyarah Result: Destroyed by as-03344 with Assembled Rifle Performance ------------- Evolutions (1) 500 Regions Visited (4) 800 Robots Destroyed (26) 130 Value Destroyed (449) 449 Prototype IDs (2) 40 Alien Tech Used (0) 0 Bonus (-60) -60 TOTAL SCORE: 1859 Bonus ------- Friendly Fire -60 Cogmind --------- Core Integrity 0/400 Matter 271/300 Energy 100/100 System Corruption 3% Temperature Cool (0) Movement Core (350) Ox6 Location -9/Exiles Parts ------- > --- POWER (1) -------- (None) > --- PROPULSION (2) --- (None) > --- UTILITY (4) ------ Large Storage Unit Visual Processing Unit > --- WEAPON (2) ------- (None) > --- INVENTORY (15) --- Ion Engine Improved Treads Humpback Humpback High-capacity Matter Pod (120) Signal Interpreter Transport Network Coupler Mini Grenade Launcher Mini Grenade Launcher Mini Grenade Launcher Mini Grenade Launcher Peak State ------------ > --- POWER ------------ Light Nuclear Core > --- PROPULSION ------- Light Treads Improved Treads > --- UTILITY ---------- Small Storage Unit Visual Processing Unit Improved Terrain Scanner Seismic Detector > --- WEAPON ----------- Mini Grenade Launcher Mini Grenade Launcher > --- INVENTORY -------- Ion Engine Light Treads Improved Treads Heat Sink Signal Interpreter Transport Network Coupler Shield Generator Beam Cannon [Rating: 18] Favorites ----------- Power Ion Engine Engine Ion Engine Power Core Light Nuclear Core Propulsion Light Treads Treads Light Treads Utility Improved Terrain Scanner Device Improved Terrain Scanner Storage Small Storage Unit Processor Visual Processing Unit Weapon Mini Grenade Launcher Energy Gun Improved Medium Laser Energy Cannon Beam Cannon Ballistic Gun Assault Rifle Launcher Mini Grenade Launcher Build | -11 -10 -9 -9 -9 ------- Run | Yrd Mat Mat Min Exi Slots Evolved 2 | . . 2 . . Power . | . . . . . Propulsion . | . . . . . Utility 2 | . . 2 . . Weapon . | . . . . . Parts Attached 27 | 7 . 17 . 3 Power 2 | 1 . 1 . . Engine 1 | 1 . . . . Core 1 | . . 1 . . Reactor . | . . . . . Propulsion 6 | 2 . 4 . . Treads 6 | 2 . 4 . . Leg . | . . . . . Wheel . | . . . . . Hover . | . . . . . Flight . | . . . . . Utility 8 | 2 . 3 . 3 Device 3 | 1 . 1 . 1 Storage 3 | 1 . . . 2 Processor 2 | . . 2 . . Hackware . | . . . . . Protection . | . . . . . Artifact . | . . . . . Weapon 11 | 2 . 9 . . Energy Gun 1 | . . 1 . . Energy Cannon 3 | . . 3 . . Ballistic Gun 5 | 2 . 3 . . Ballistic Cannon . | . . . . . Launcher 2 | . . 2 . . Special Weapon . | . . . . . Impact Weapon . | . . . . . Slashing Weapon . | . . . . . Piercing Weapon . | . . . . . Special Melee Weapon . | . . . . . Unidentified Prototypes 2 | . . 2 . . Parts Lost 7 | . . . . 7 Power 1 | . . . . 1 Propulsion 2 | . . . . 2 Utility 2 | . . . . 2 Weapon 2 | . . . . 2 Highest Loss Streak 7 | . . . . 7 To Critical Strikes . | . . . . . Average Slot Usage (%) 98 | . 100 98 100 96 Engine 5 | . 14 9 . . Core 5 | . . 1 11 10 Treads 22 | . 28 22 22 21 Device 20 | . 14 22 22 19 Storage 11 | . 14 11 11 11 Processor 9 | . . 11 11 11 Energy Gun 1 | . . 3 . . Energy Cannon 4 | . . 8 . . Ballistic Gun 5 | . 28 6 . . Launcher 10 | . . 1 22 21 Peak Build Rating 18 | 9 9 18 18 18 Average Rating 14 | 7 9 14 18 17 On Entrance 10 | . 9 9 18 18 Naked Turns . | . . . . . Heaviest Build 208 | 15 15 18 14 208 Greatest Support 43 | 40 40 43 43 43 Greatest Overweight (x) 6 | 3 . . . 6 Average Overweight (x) . | . . . . . Largest Inventory Capacity 35 | 8 8 8 8 35 Average Capacity 9 | 7 8 8 8 14 Most Carried 13 | 4 4 8 8 13 Average Carried 6 | 1 3 6 8 10 Final Capacity 15 | 8 8 8 8 15 Final Carried 13 | 3 4 8 8 13 Class Distribution -------------------- 55% | Mutant 41% | Scavenger-Mutant 3% | Hauler-Mutant Dominant Class ---------------- Mutant | -10/Materials Mutant | -9/Materials Scavenger-Mutant | -9/Mines Scavenger-Mutant | -9/Exiles Resources | -11 -10 -9 -9 -9 ----------- Run | Yrd Mat Mat Min Exi Matter Collected 673 | 366 54 173 . 80 Remotely . | . . . . . Salvage Created 693 | 204 54 431 . 4 Parts 62 | 20 7 33 . 2 Haulers Intercepted . | . . . . . Recyclers Shooed 2 | 1 . 1 . . Parts Field Recycled . | . . . . . Retrieved Matter . | . . . . . Parts Self-Destructed . | . . . . . Prevented . | . . . . . Kills | -11 -10 -9 -9 -9 ------- Run | Yrd Mat Mat Min Exi Combat Hostiles Destroyed 11 | . 3 8 . . Guns 4 | . 3 1 . . Cannons 5 | . . 5 . . AOE 1 | . . 1 . . Classes Destroyed 9 | 3 2 3 . 1 Worker 2 | 2 . . . . Builder 1 | . . 1 . . Tunneler 8 | 6 . 2 . . Recycler 1 | 1 . . . . Watcher 2 | . 1 1 . . Swarmer 3 | . 3 . . . Grunt 5 | . . 5 . . Sentry 3 | . . 3 . . Zionite 1 | . . . . 1 Best Kill Streak 8 | 8 4 4 . . Combat Bots Only 4 | . 3 4 . . Max Kills in Single Turn 2 | 1 1 2 . 1 Gunslinging . | . . . . . Exploded 1 | . . 1 . . Melee . | . . . . . Uniques/NPCs Destroyed . | . . . . . Combat | -11 -10 -9 -9 -9 -------- Run | Yrd Mat Mat Min Exi Hostile Shots Fired 127 | . 11 57 . 59 Missed 38 | . 5 19 . 14 Damage Taken 1405 | . 45 472 . 888 Core 400 | . . 93 . 307 Absorbed by Shields . | . . . . . Core Remaining (%) 100 | 100 100 . . . Volleys Fired 60 | 16 9 32 . 3 Largest 2 | 2 2 2 . 2 Hottest 120 | 40 40 120 . 60 Shots Fired 106 | 32 18 50 . 6 Gun 62 | 32 18 12 . . Cannon 36 | . . 36 . . Launcher 8 | . . 2 . 6 Special . | . . . . . Kinetic 61 | 32 18 11 . . Thermal 37 | . . 37 . . Explosive 8 | . . 2 . 6 Electromagnetic . | . . . . . Robot Hit Streak 10 | 6 4 10 . . Robot Miss Streak 4 | 2 3 4 . . Penetration Max . | . . . . . Secondary Targets . | . . . . . Shots Hit Robots 58 | 19 7 32 . . Core Hits 31 | 10 4 16 . 1 Critical Kills 1 | . . 1 . . Critical Parts Destroyed . | . . . . . Critical Strikes 1 | . . 1 . . Meltdown 1 | . . 1 . . Melee Attacks . | . . . . . Impact . | . . . . . Slashing . | . . . . . Piercing . | . . . . . Sneak Attacks . | . . . . . Combat Hostiles . | . . . . . Follow-up Attacks . | . . . . . Damage Inflicted 1005 | 253 92 610 . 50 Guns 463 | 253 92 118 . . Cannons 419 | . . 419 . . Explosions 112 | . . 72 . 40 Melee . | . . . . . Ramming 11 | . . 1 . 10 Kinetic 463 | 253 92 118 . . Thermal 419 | . . 419 . . Explosive 112 | . . 72 . 40 Electromagnetic . | . . . . . Impact . | . . . . . Slashing . | . . . . . Piercing . | . . . . . Highest Corruption 2 | . . . . 2 Average Corruption 1 | . . . . 1 Corruption Purged . | . . . . . Corruption Blocked . | . . . . . Overload Shots . | . . . . . Overflow Damage 8 | . . 5 . 3 Projectiles 5 | . . 5 . . Explosions 3 | . . . . 3 Melee . | . . . . . Knockbacks . | . . . . . Impact . | . . . . . Kinetic . | . . . . . Secondary . | . . . . . Self-Inflicted Damage 46 | . . . . 46 Shots 2 | . . . . 2 Rammed 2 | . . . . 2 Targets Rammed 3 | . . 1 . 2 Kicked . | . . . . . Crushed 1 | . . 1 . . Highest Temperature 537 | 6 . 537 . . Average Temperature 217 | 6 . 218 . . Received Heat Transfer 240 | . . 240 . . Effects 11 | . . 11 . . Shutdowns 1 | . . 1 . . Energy Bleed 4 | . . 4 . . Interference 4 | . . 4 . . Short Circuit 1 | . . 1 . . Damage (minor) 1 | . . 1 . . Siege Activations . | . . . . . Robots Corrupted . | . . . . . Combat Hostiles . | . . . . . Parts Fried . | . . . . . Impact Corruptions . | . . . . . Robots Melted 1 | . . 1 . . Combat Hostiles 1 | . . 1 . . Parts Melted 1 | . . 1 . . Heat Transferred 888 | . . 888 . . Parts Sabotaged . | . . . . . Parts Stolen . | . . . . . Parts Stripped . | . . . . . Power Chain Reactions . | . . . . . Alert | -11 -10 -9 -9 -9 ------- Run | Yrd Mat Mat Min Exi Peak Influence 243 | 45 127 243 62 . Initial 62 | . 29 53 62 . Average 72 | 27 105 81 62 . Maximum Alert Level 1 | . . 1 . . Low Security (%) 90 | 100 100 84 100 . Level 1 9 | . . 15 . . Level 2 . | . . . . . Level 3 . | . . . . . Level 4 . | . . . . . Level 5 . | . . . . . High Security . | . . . . . Max Security . | . . . . . Squads Dispatched 2 | . . 2 . . Investigation 1 | . . 1 . . Extermination . | . . . . . Reinforcement 1 | . . 1 . . Assault . | . . . . . Garrison . | . . . . . Intercept . | . . . . . Searches Triggered . | . . . . . Construction Impeded . | . . . . . Haulers Reinforced . | . . . . . Active Scanning Responses . | . . . . . Cargo Convoy Interrupts . | . . . . . Stealth | -11 -10 -9 -9 -9 --------- Run | Yrd Mat Mat Min Exi Distress Signals 2 | . 1 1 . . Communications Jammed . | . . . . . Distress Signals . | . . . . . Times Spotted 37 | . 5 18 1 13 Peak Tracking Total 17 | . 4 4 1 17 Tactical Retreats 1 | . . . . 1 Traps | -11 -10 -9 -9 -9 ------- Run | Yrd Mat Mat Min Exi Traps Triggered 1 | . . 1 . . Indirectly . | . . . . . Trap Hack Attempts . | . . . . . Triggered . | . . . . . Disarmed . | . . . . . Reprogrammed . | . . . . . Reused . | . . . . . Traps Extracted . | . . . . . Installed . | . . . . . Triggered . | . . . . . Machines | -11 -10 -9 -9 -9 ---------- Run | Yrd Mat Mat Min Exi Machines Disabled 6 | . . . . 6 Max in Single Turn 3 | . . . . 3 Machines Repaired . | . . . . . Machines Dismantled . | . . . . . Machines Sabotaged . | . . . . . Overloaded Fab Kills . | . . . . . Hacking | -11 -10 -9 -9 -9 --------- Run | Yrd Mat Mat Min Exi Machines Accessed 3 | . 2 1 . . Terminals 3 | . 2 1 . . Fabricators . | . . . . . Repair Stations . | . . . . . Recycling Units . | . . . . . Scanalyzers . | . . . . . Garrison Access . | . . . . . Total Hacks 6 | . 3 3 . . Successful 2 | . 1 1 . . Failed 4 | . 2 2 . . Catastrophic 2 | . 2 . . . Database Lockouts . | . . . . . Manual 6 | . 3 3 . . Terminals 6 | . 3 3 . . Fabricators . | . . . . . Repair Stations . | . . . . . Recycling Units . | . . . . . Scanalyzers . | . . . . . Garrison Access . | . . . . . Terminal Hacks . | . . . . . Fabricator Hacks . | . . . . . Repair Station Hacks . | . . . . . Recycling Unit Hacks . | . . . . . Scanalyzer . | . . . . . Garrison Access Hacks . | . . . . . Unauthorized Hacks 2 | . 1 1 . . Terminals 2 | . 1 1 . . Operators 2 | . 1 1 . . Fabricators . | . . . . . Repair Stations . | . . . . . Recycling Units . | . . . . . Scanalyzers . | . . . . . Garrison Access . | . . . . . Data Cores Recovered . | . . . . . Used . | . . . . . Hacking Detections 2 | . 1 1 . . Full Trace Events 1 | . . 1 . . Feedback Events . | . . . . . Feedback Blocked . | . . . . . Robot Schematics Acquired . | . . . . . Robots Built . | . . . . . Authchips . | . . . . . Time . | . . . . . Total Robot Build Rating . | . . . . . Part Schematics Acquired . | . . . . . Parts Built . | . . . . . Authchips . | . . . . . Time . | . . . . . Total Part Build Rating . | . . . . . Parts Repaired . | . . . . . Time . | . . . . . Parts Recycled . | . . . . . Recycled Matter . | . . . . . Retrieved Matter . | . . . . . Retrieved Components . | . . . . . Parts Scanalyzed . | . . . . . Part Schematics Acquired . | . . . . . Parts Damaged . | . . . . . Bothacking | -11 -10 -9 -9 -9 ------------ Run | Yrd Mat Mat Min Exi Used RIF Installer . | . . . . . Robots Hacked . | . . . . . Non-combat . | . . . . . Combat . | . . . . . Robot Hacks Applied . | . . . . . Relay Couplers Released . | . . . . . Fabnet Peak Effective % . | . . . . . Robots Rewired . | . . . . . Allies Hacked . | . . . . . Hacks Repelled . | . . . . . Allies | -11 -10 -9 -9 -9 -------- Run | Yrd Mat Mat Min Exi Total Allies . | . . . . . Largest Group . | . . . . . Highest-Rated Group . | . . . . . Highest-Rated Ally . | . . . . . Total Orders . | . . . . . Ally Attacks . | . . . . . Total Damage . | . . . . . Kills . | . . . . . Allies Corrupted . | . . . . . Allies Melted . | . . . . . Intel | -11 -10 -9 -9 -9 ------- Run | Yrd Mat Mat Min Exi Robot Analysis Total . | . . . . . Derelict Logs Recovered . | . . . . . Drone Launches . | . . . . . Drone Recoveries . | . . . . . Exploration | -11 -10 -9 -9 -9 ------------- Run | Yrd Mat Mat Min Exi Turns Passed 2066 | 253 166 872 165 610 Spaces Moved 1113 | 125 87 461 104 336 Core 26 | 24 . . . 2 Treads 1087 | 101 87 461 104 334 Legs . | . . . . . Wheels . | . . . . . Hover . | . . . . . Flight . | . . . . . Fastest Speed 50 | 50 160 160 160 160 Average Speed 162 | 151 160 160 160 171 Slowest Speed 480 | 200 160 160 160 480 Overloaded Moves . | . . . . . Propulsion Burnouts . | . . . . . Robots Hopped . | . . . . . Cave-ins Triggered . | . . . . . Exploration Rate (%) 27 | 4 20 28 24 62 Regions Visited 4 Branch Regions 2 Pre-discovered Areas . | . . . . . Known Exits Taken . | . . . . . Unknown Exits Taken 4 | 1 1 1 1 . Scrap Searched . | . . . . . Spaces Dug . | . . . . . Terrain Destroyed 75 | . . 17 . 58 Melee . | . . . . . Projectile . | . . . . . AOE 75 | . . 17 . 58 Terrain Rammed . | . . . . . Walls Destroyed . | . . . . . Machines Disabled . | . . . . . Actions | -11 -10 -9 -9 -9 --------- Run | Yrd Mat Mat Min Exi Total 1273 | 157 96 551 103 366 Wait . | . . . . . Move 1109 | 124 86 460 103 336 Hop . | . . . . . Pick Up 49 | 10 1 21 . 17 Fast Attach 2 | . . 2 . . Attach 12 | 7 . 2 . 3 Detach . | . . . . . Swap 13 | . . 13 . . Drop 25 | . . 20 . 5 Fire 60 | 16 9 32 . 3 Melee . | . . . . . Ram . | . . . . . Kick . | . . . . . Crush 3 | . . 1 . 2 Escape Stasis . | . . . . . Rewire . | . . . . . Trap . | . . . . . Miscellaneous . | . . . . . Route ------- -11/Scrapyard -10/Materials -9/Materials -9/Mines -9/Exiles (discovered 1 exit: [*Min]) History --------- Turn | Location | Event 2 | -11/Scrapyard | Met Revision 17 31 | -11/Scrapyard | Discovered new exit (range 16) 254 | -11/Scrapyard | Entered Materials 312 | -10/Materials | Build established: Mutant 394 | -10/Materials | Discovered new exit (range 16) 420 | -10/Materials | Entered another Materials area 420 | -9/Materials | Evolved 2 slots: Utility x2 1256 | -9/Materials | Discovered new exit (range 14) 1292 | -9/Materials | Entered Mines 1293 | -9/Mines | Assembled infested the area 1371 | -9/Mines | Met 8R-AWN 1430 | -9/Mines | Build established: Scavenger-Mutant 1448 | -9/Mines | Discovered new exit (range 5) 1457 | -9/Mines | Entered Exiles 1494 | -9/Exiles | Discovered new exit (range 17) 1517 | -9/Exiles | Welcomed by 8R-AWN 1563 | -9/Exiles | Met EX-HEX 1568 | -9/Exiles | Learned about 8R-AWN's background 1843 | -9/Exiles | Met EX-DEC 1883 | -9/Exiles | Visited The Gauntlet 2023 | -9/Exiles | Attacked by the Exiles 2064 | -9/Exiles | Core integrity fell below 50% 2067 | -9/Exiles | Core integrity fell below 20% 2067 | -9/Exiles | Destroyed by as-03344 with Assembled Rifle Last Messages --------------- 02022_ Testing Apparatus damaged. 02023_ EXILES: Hostile robot within lab perimeter. Defensive protocols time, folks! 02025_ Testing Apparatus damaged. 02031_ The unstable cave ceiling collapses. 02035_ Testing Chamber Shield damaged. 02038_ EX-Generator explodes. 02039_ The unstable cave ceiling collapses. 02051_ Lgt. Nuclear Core destroyed. 02051_ System corrupted by crushing effect (+1). 02052_ Slammed into as-84840. 02059_ EX-BIN: "I just want to science!" 02059_ Mni. Grenade Launcher destroyed. 02059_ Seismic Detector destroyed. 02059_ Imp. Treads destroyed. 02060_ Slammed into J5-HVA. 02062_ Lgt. Treads destroyed. 02063_ Mni. Grenade Launcher destroyed. 02066_ Knocked back. 02067_ Critical hit (Impale). Map ----- +----------------------------------------------------+ | ???????????????????????#"""" ""## # | | ???????????????????????#"" ""#### # | | ???????????????????????#" """"##??# # | | ???????????????????????#""" """#?### # | | ????????????????????????# ""##??# | | ????????????????????????#"" """###??#" | | ????????????????????????##""" ##?#??#" | | ?????????????????????????##"""" ##?#???#! "" | | ??????????????????????????### ##?????##### | | ?????????????????#??????????##### ####?????#??? | | ??????#?????????????????????????## #??#??#????#? | | ???????????????????????????#????## #????????#?#? | | ???????????????#???????#?????????# #???##??????? | | ?????????????????????????????????# ##???#????#?? | | ?#######???#???#???#??#?###??????# #?#?#????#??? | | #"""""""??#??""""""#??#""""""?#??# #?#???#?????? | | #"" ""####"""""""#???"""""""???# #???#?#???#?? | | #" "#"""""""" "#?##" """"#??# #????#??????? | | #"" "?#""#""" """#???"" """???# #?????#????#? | | ?"" "?#""#"" ""???#"" ""???# #???????????? | | ###"""###""###"""########"""###### ########????? | | "" " """"" """""""" """""" """""""#"???? | | " """"""" ca "#"" ?? | | a a c " "" | | z a c " " " | | a@ a " """ | | = * a "" #"" "" | | """ " """"" " """" """""#?"??? | | ###"" # # """###""###"""########"""######????? | | ?"" ""#""#"" ""?????" ""????????? | | #""" "" ""#""#""" ""#????" """#???????? | | #" "" # """"""""#" " "#????""""""#???????? | | #"""" """""#""#"""""""#????" """"????????? | | #""" """""#??#"""""""#????"""""?????????? | | ####" ""#"###?????#######????###???????????? | | ???## " "?????????????????????????????????? | | ????# " ?"????????????????????????#???????? | | #??### " ""##??#??????#???????????????????????? | | ??#?? """""" ???????????????????????????????????? | | | | | | | | | | | | | | | | | | | | | | | +----------------------------------------------------+ Best States ------------- Heat Dissipation 28 Energy Generation 14 Energy Capacity 250 Matter Stores 300 Matter Capacity 300 Sight Range 18 Terrain Scan Range 16 Terrain Scan Density 10 Evasion (%) 40 Recoil Reduction 2 Item Schematics ----------------- None Robot Schematics ------------------ None Fabricated ------------ Nothing Alien Tech Used ----------------- None Achievements -------------- It's Just You Challenges ------------ None Game ------ Seed CompactWardroneDoublenader Manual? 0 Play Time 00:21:40 Cumulative 14.0 hours Start 2024.11.06 @ 18:49:01 End 2024.11.06 @ 19:08:40 Sessions 1 Manual Loads 0 Difficulty Rogue Special Mode None Game No. 33 Rogue 33 Adventurer 0 Explorer 0 Win Type - Total 0 Types 0/0/0/0/0/0/0/0/0 Lore% 8 Gallery% 15 Achievement% 15 Wizard Run 0 Options --------- Layout 1 ASCII 0 Keyboard 0 Movement Arrows Keybinds 0 Fullscreen 1 Font 24/Smallcaps Map View 50x40 Zoom Use 1% Tactical HUD 1 Map Filters NONE Filters NONE Steam 1 RUN: 40a0500c-0760-495a-bf98-70d5ea687850